fUSD/lending_fUSD_20241220
["ID","MTS","AMOUNT","RATE_DAILY","PERIOD"]
[346110864,1734707464084,-593.03267702,0.000239,4]
[346110865,1734707464093,-308.000307,0.000239,2]
[346110866,1734707464106,-150.0,0.00023901,2]
[346110867,1734707464116,-150.0,0.00023903,2]
[346110868,1734707464126,-150.0,0.00023904,2]
[346110869,1734707464136,-150.0,0.00023905,2]
[346110870,1734707464146,-150.0,0.00023905,2]
[346110871,1734707464157,-150.0,0.00023907,2]
[346110872,1734707464167,-150.0,0.00023907,2]
[346110873,1734707464177,-150.0,0.00023908,2]
[346110874,1734707464187,-150.0,0.0002391,2]
[346110875,1734707464198,-150.0,0.00023911,2]
[346110876,1734707464208,-150.0,0.00023913,2]
[346110877,1734707464219,-3000.0,0.00023918,2]
[346110878,1734707464229,-150.0,0.0002392,2]
[346110879,1734707464239,-300.0,0.00023921,2]
[346110880,1734707464249,-150.0,0.00023921,2]
[346110881,1734707464259,-150.0,0.00023921,2]
[346110882,1734707464268,-150.0,0.00023921,2]
[346110883,1734707464279,-150.0,0.00023921,2]
[346110884,1734707464288,-150.0,0.00023928,2]
[346110885,1734707464302,-150.0,0.00023934,2]
[346110886,1734707464313,-150.0,0.00023939,2]
[346110887,1734707464323,-300.0,0.00023942,2]
[346110888,1734707464333,-150.0,0.00023944,2]
[346110889,1734707464343,-150.0,0.00023947,2]
[346110890,1734707464353,-150.0,0.00023947,2]
[346110891,1734707464363,-406.46,0.00023953,2]
[346110892,1734707464373,-150.0,0.00023954,2]
[346110893,1734707464383,-150.0,0.00023958,2]
[346110894,1734707464393,-150.0,0.00023959,2]
[346110895,1734707464403,-1226.06,0.00023962,7]
[346110896,1734707464413,-1226.06,0.00023962,7]
[346110897,1734707464423,-150.0,0.00023965,2]
[346110898,1734707464433,-150.0,0.00023966,2]
[346110899,1734707464443,-150.0,0.00023966,2]
[346110900,1734707464453,-150.0,0.00023969,2]
[346110901,1734707464463,-150.0,0.00023969,2]
[346110902,1734707464473,-150.0,0.0002397,2]
[346110903,1734707464483,-150.0,0.00023973,2]
[346110904,1734707464493,-150.0,0.00023976,2]
[346110905,1734707464503,-150.0,0.00023976,2]
[346110906,1734707464512,-150.0,0.0002398,2]
[346110907,1734707464523,-150.0,0.00023983,2]
[346110908,1734707464533,-978.542718,0.00023984,2]
[346110909,1734707464543,-978.542718,0.00023984,2]
[346110910,1734707464554,-978.542718,0.00023984,2]
[346110911,1734707464563,-978.542718,0.00023984,2]
[346110912,1734707464573,-160.6143171,0.00023984,2]
[346110913,1734707464583,-160.6143171,0.00023984,2]
[346110914,1734707464593,-160.6143171,0.00023984,2]
[346110915,1734707464604,-150.0,0.00023987,2]
[346110916,1734707464615,-510.8485356,0.00023988,14]
[346110917,1734707464626,-217813.78526269,0.0002399,7]
[346110918,1734707464636,-150.0,0.00023992,2]
[346110919,1734707464646,-150.0,0.00023994,2]
[346110920,1734707464657,-150.0,0.00023994,2]
[346110921,1734707464667,-420.4649955,0.00023996,2]
[346110922,1734707464677,-854.80015822,0.00023996,2]
[346110923,1734707464688,-1304641.59648554,0.00023996,2]
[346110924,1734707464698,-150.0,0.00023997,2]
[346110925,1734707464708,-500.0,0.00023999,2]
[346110926,1734707464718,-6749.11198085,0.00024,2]
[346110927,1734707464728,-4474367.96810809,0.00024,5]
[346110928,1734707465219,-3346.0,0.00024,5]
[346110929,1734707465272,-2387.08319283,0.00024,5]
[346110930,1734707465422,-333.36,0.00024,5]
[346110931,1734707465434,-610.35,0.00024,5]
[346110932,1734707465466,-1335.20499127,0.00024,5]
[346110933,1734707465478,-255.6167,0.00024,5]
[346110934,1734707465670,-8367.25674224,0.00024,5]
[346110935,1734707466211,-540.052,0.00018548,2]
[346110936,1734707466221,-4625.7466119,0.00024,5]
[346110937,1734707466234,-76578.04537879,0.00024,5]
[346110938,1734707466245,-919.97299999,0.00024,5]
[346110939,1734707466256,-75273.22129132,0.00024,5]
[346110940,1734707466267,-3695235.19724835,0.00024,5]
[346110941,1734707466278,-30405.17408027,0.00024,5]
[346110942,1734707466290,-33833.15610341,0.00024,5]
[346110943,1734707466304,-149791.70097078,0.00024,5]
[346110944,1734707466540,-500.0,0.00021917,4]
[346110945,1734707466551,-500.0,0.00022191,4]
[346110946,1734707466561,-3.40280001,0.00022465,4]
[346110947,1734707466573,-404.97719999,0.00022465,4]
[346110948,1734707466582,-153.0,0.00023259,2]
[346110949,1734707466592,-864103.18934397,0.00024,5]
[346110950,1734707466656,-500.0,0.00021807,2]
[346110951,1734707466665,-8141.37321667,0.00024,5]
[346110953,1734707691662,156.61,0.0002155,30]
[346110955,1734708044055,491.82,0.00010137,2]
[346110959,1734708399292,-300.0,0.00012999,2]
[346110960,1734708399321,-246.5904332,0.00012999,2]
[346110961,1734708399347,-500.0,0.00012999,2]
[346110962,1734708399380,-500.0,0.00012999,2]
[346110963,1734708399406,-500.0,0.00012999,2]
[346110964,1734708399431,-465.2928701,0.00012999,2]
[346110965,1734708399459,-488.1166967,0.00012999,2]
[346110966,1734708412811,-11.8833033,0.00012999,2]
[346110967,1734708412839,-478.06556581,0.00012999,2]
[346110968,1734708412867,-500.0,0.00012999,2]
[346110969,1734708412898,-638.96251992,0.00012999,2]
[346110970,1734708412928,-239.81139115,0.00012999,2]
[346110971,1734708412957,-500.0,0.00012999,2]
[346110972,1734708412986,-500.0,0.00012999,2]
[346110973,1734708413012,-131.27721982,0.00012999,2]
[346110974,1734708424376,-200.0,0.00012998,2]
[346110984,1734708475782,235.0631057,0.00023,120]
[346110998,1734708616550,156.61,0.00019587,30]
[346111010,1734708632292,-162.46259526,0.00012899,2]
[346111011,1734708632306,-145.29071584,0.000129,2]
[346111012,1734708632318,-18.3778217,0.000129,2]
[346111013,1734708632327,-332.8171783,0.000129,2]
[346111014,1734708632340,-630.00784804,0.000129,2]
[346111015,1734708632350,-179.00644439,0.00012973,2]
[346111016,1734708632363,-185.56187126,0.0001299,2]
[346111017,1734708632373,-185.56187126,0.0001299,2]
[346111018,1734708632383,-368.72278018,0.00012999,2]
[346111019,1734708632395,-500.0,0.00012999,2]
[346111020,1734708632406,-500.0,0.00012999,2]
[346111021,1734708632416,-500.0,0.00012999,2]
[346111022,1734708632427,-500.0,0.00012999,2]
[346111023,1734708632439,-500.0,0.00012999,2]
[346111024,1734708632449,-500.0,0.00012999,2]
[346111025,1734708632459,-500.0,0.00012999,2]
[346111026,1734708632469,-500.0,0.00012999,2]
[346111027,1734708632479,-500.0,0.00012999,2]
[346111028,1734708632489,-383.7368337,0.00012999,2]
[346111029,1734708632499,-500.0,0.00012999,2]
[346111030,1734708632509,-500.0,0.00012999,2]
[346111031,1734708632519,-500.0,0.00012999,2]
[346111032,1734708632529,-500.0,0.00012999,2]
[346111033,1734708632539,-500.0,0.00012999,2]
[346111034,1734708632550,-500.0,0.00012999,2]
[346111035,1734708632561,-500.0,0.00012999,2]
[346111036,1734708632571,-418.53394285,0.00012999,2]
[346111037,1734708632584,-81.46605715,0.00012999,2]
[346111038,1734708632595,-500.0,0.00012999,2]
[346111039,1734708632605,-500.0,0.00012999,2]
[346111040,1734708632615,-500.0,0.00012999,2]
[346111041,1734708632625,-500.0,0.00012999,2]
[346111042,1734708632635,-500.0,0.00012999,2]
[346111043,1734708632645,-500.0,0.00012999,2]
[346111044,1734708632655,-500.0,0.00012999,2]
[346111045,1734708632667,-500.0,0.00012999,2]
[346111046,1734708632677,-500.0,0.00012999,2]
[346111047,1734708632687,-237.78394285,0.00012999,2]
[346111048,1734708632700,-262.21605715,0.00012999,2]
[346111049,1734708632710,-500.0,0.00012999,2]
[346111050,1734708632720,-2309.48894285,0.00013,2]
[346111051,1734708632732,-3517.25,0.00013,2]
[346111052,1734708632744,-3441.45,0.00013,2]
[346111053,1734708632757,-3441.33,0.00013,2]
[346111054,1734708632787,-5466.26046272,0.00013,2]
[346111055,1734708632803,-6863.28105568,0.00013,2]
[346111056,1734708632828,-524.72012969,0.00013,2]
[346111057,1734708637330,-435.18186903,0.000129,2]
[346111058,1734708637516,-15408.86269012,0.000129,2]
[346111059,1734708637527,-399419.47265726,0.00013,2]
[346111060,1734708637539,-482.92486882,0.00013,2]
[346111061,1734708637553,-29892.84716823,0.00013,2]
[346111062,1734708637593,-3353.41563204,0.00013,2]
[346111093,1734708637953,-525.45,0.00013,2]
[346111094,1734708638026,-2336.869332,0.00013,2]
[346111095,1734708638106,-8316856.34986081,0.00013,2]
[346111096,1734708638117,-85960.35195774,0.00013,2]
[346111097,1734708638128,-162.46259525,0.00013399,2]
[346111098,1734708638139,-176.04,0.00013699,2]
[346111099,1734708638149,-214.78437314,0.000156,2]
[346111100,1734708638159,-491.82,0.00016813,2]
[346111101,1734708638170,-525.26359707,0.00017,5]
[346111102,1734708638180,-153.64,0.000179,2]
[346111103,1734708638189,-153.64,0.000179,2]
[346111104,1734708638199,-153.64,0.000179,2]
[346111105,1734708638209,-153.64,0.000179,2]
[346111106,1734708638219,-153.64,0.000179,2]
[346111107,1734708638228,-153.64,0.000179,2]
[346111108,1734708638238,-153.64,0.000179,2]
[346111109,1734708638248,-153.64,0.000179,2]
[346111110,1734708638258,-153.64,0.000179,2]
[346111111,1734708638268,-153.64,0.000179,2]
[346111112,1734708638279,-153.64,0.000179,2]
[346111113,1734708638289,-153.64,0.000179,2]
[346111114,1734708638298,-153.64,0.000179,2]
[346111115,1734708638312,-153.64,0.000179,2]
[346111116,1734708638321,-153.64,0.000179,2]
[346111117,1734708638331,-153.64,0.000179,2]
[346111118,1734708638341,-153.64,0.000179,2]
[346111119,1734708638351,-153.64,0.000179,2]
[346111120,1734708638360,-153.64,0.000179,2]
[346111121,1734708638373,-153.64,0.000179,2]
[346111122,1734708638383,-153.64,0.000179,2]
[346111123,1734708638392,-153.64,0.000179,2]
[346111124,1734708638403,-153.64,0.000179,2]
[346111125,1734708638412,-153.64,0.000179,2]
[346111126,1734708638422,-153.64,0.000179,2]
[346111127,1734708638431,-153.64,0.000179,2]
[346111128,1734708638442,-153.64,0.000179,2]
[346111129,1734708638452,-500.1,0.00018349,2]
[346111130,1734708638461,-962.82502633,0.000184,2]
[346111131,1734708638470,-1088.89,0.00018724,2]
[346111132,1734708638480,-1897.0,0.00018757,2]
[346111133,1734708638489,-1255.0,0.00018757,2]
[346111134,1734708638498,-928.0,0.00018757,2]
[346111136,1734708638508,-3767.0,0.00018757,2]
[346111138,1734708638517,-817.0,0.00018757,2]
[346111139,1734708638527,-535.0,0.00018757,2]
[346111141,1734708638537,-3633.0,0.00018757,2]
[346111142,1734708638546,-1264.0,0.00018757,2]
[346111143,1734708638557,-150.0,0.00018757,2]
[346111144,1734708638567,-635.0,0.00018757,2]
[346111145,1734708638576,-2009.0,0.00018757,2]
[346111147,1734708638585,-1554.348,0.00018757,2]
[346111148,1734708638595,-497.73,0.00019179,2]
[346111149,1734708638604,-200.0,0.00019469,2]
[346111150,1734708638614,-1000.0,0.00019767,2]
[346111151,1734708638624,-495.54,0.00019968,2]
[346111152,1734708638634,-500.55,0.00019968,2]
[346111153,1734708638643,-500.07,0.00019968,2]
[346111154,1734708638653,-503.55,0.00019968,2]
[346111155,1734708638663,-504.33,0.00019968,2]
[346111156,1734708638672,-500.0,0.00019968,2]
[346111157,1734708638682,-700.0,0.00019968,2]
[346111158,1734708638692,-10884.02654705,0.0001998,2]
[346111159,1734708638701,-4758.8980466,0.0002,2]
[346111160,1734708638711,-24999.999998,0.0002,2]
[346111161,1734708638720,-15902.37127851,0.0002,2]
[346111162,1734708638730,-5495.47,0.00020251,2]
[346111163,1734708638739,-250.0,0.00020547,2]
[346111164,1734708638748,-164.92,0.00020564,2]
[346111165,1734708638758,-23900.0,0.00020623,2]
[346111166,1734708638767,-250.0,0.00020748,2]
[346111167,1734708638777,-960.0,0.00020832,2]
[346111169,1734708638786,-411.01,0.00020865,2]
[346111170,1734708638796,-1088.89,0.00020988,2]
[346111171,1734708638807,-471.0,0.00021,5]
[346111172,1734708638818,-500.0,0.00021064,2]
[346111173,1734708638828,-700.0,0.00021064,2]
[346111174,1734708638838,-180.07,0.00021336,2]
[346111175,1734708638848,-250.0,0.00021477,2]
[346111176,1734708638858,-1500.0,0.00021571,2]
[346111177,1734708638867,-1002.1,0.0002158,2]
[346111178,1734708638877,-1009.75,0.0002158,2]
[346111179,1734708638886,-150.0,0.000216,4]
[346111180,1734708638896,-8491.8602,0.00021617,2]
[346111181,1734708638905,-1000.0,0.00021617,2]
[346111182,1734708638914,-292.93,0.00021675,2]
[346111183,1734708638925,-981.66,0.00021699,2]
[346111184,1734708638935,-150.0,0.00021757,2]
[346111185,1734708638944,-634.0,0.00021757,2]
[346111186,1734708638954,-116378.71535514,0.000218,2]
[346111187,1734708638963,-300.0,0.00021808,2]
[346111188,1734708638972,-9193.92144202,0.0002188,2]
[346111189,1734708638982,-220.43746127,0.00021917,4]
[346111190,1734708638992,-500.0,0.00021917,4]
[346111191,1734708639001,-500.0,0.00021917,4]
[346111192,1734708639011,-500.0,0.00021917,4]
[346111193,1734708639020,-500.0,0.00021917,4]
[346111194,1734708639030,-500.0,0.00021917,4]
[346111195,1734708639039,-500.0,0.00021917,2]
[346111196,1734708639049,-500.0,0.00021917,4]
[346111197,1734708639061,-500.0,0.00021917,4]
[346111198,1734708639070,-500.0,0.00021917,4]
[346111199,1734708639079,-539.92,0.00021917,4]
[346111200,1734708639088,-500.0,0.00021917,4]
[346111201,1734708639098,-500.0,0.00021917,4]
[346111202,1734708639107,-500.0,0.00021917,4]
[346111203,1734708639116,-500.0,0.00021917,4]
[346111204,1734708639126,-500.0,0.00021917,4]
[346111205,1734708639135,-500.0,0.00021917,4]
[346111206,1734708639144,-500.0,0.00021917,4]
[346111207,1734708639153,-500.0,0.00021917,4]
[346111208,1734708639163,-268.45,0.00021917,4]
[346111209,1734708639172,-500.0,0.00021917,4]
[346111210,1734708639182,-459.68880404,0.00021917,4]
[346111211,1734708639191,-500.0,0.00021917,4]
[346111212,1734708639200,-500.0,0.00021917,4]
[346111213,1734708639210,-500.0,0.00021917,4]
[346111214,1734708639220,-500.0,0.00021917,4]
[346111215,1734708639229,-500.0,0.00021917,4]
[346111216,1734708639239,-540.95,0.00021917,4]
[346111217,1734708639248,-500.0,0.00021917,4]
[346111218,1734708639258,-500.0,0.00021917,4]
[346111219,1734708639267,-500.0,0.00021917,4]
[346111220,1734708639277,-500.0,0.00021917,4]
[346111221,1734708639286,-500.0,0.00021917,4]
[346111222,1734708639295,-500.0,0.00021917,4]
[346111223,1734708639307,-500.0,0.00021917,4]
[346111224,1734708639316,-500.0,0.00021917,4]
[346111225,1734708639326,-500.0,0.00021917,4]
[346111226,1734708639335,-500.0,0.00021917,4]
[346111227,1734708639344,-506.5,0.00021917,4]
[346111228,1734708639356,-500.0,0.00021917,2]
[346111229,1734708639368,-500.0,0.00021917,4]
[346111230,1734708639378,-500.0,0.00021917,4]
[346111231,1734708639388,-500.0,0.00021917,4]
[346111232,1734708639398,-500.0,0.00021917,4]
[346111233,1734708639408,-500.0,0.00021917,4]
[346111234,1734708639417,-500.0,0.00021917,4]
[346111235,1734708639427,-500.0,0.00021917,4]
[346111236,1734708639438,-500.0,0.00021917,4]
[346111237,1734708639447,-500.0,0.00021917,4]
[346111238,1734708639456,-500.0,0.00021917,4]
[346111239,1734708639465,-500.0,0.00021917,4]
[346111240,1734708639474,-500.0,0.00021917,4]
[346111241,1734708639484,-500.0,0.00021917,4]
[346111242,1734708639493,-620.61,0.00021917,4]
[346111243,1734708639503,-500.0,0.00021917,4]
[346111244,1734708639512,-500.0,0.00021917,4]
[346111245,1734708639524,-500.0,0.00021917,4]
[346111246,1734708639535,-500.0,0.00021917,4]
[346111247,1734708639545,-500.0,0.00021917,4]
[346111248,1734708639558,-500.0,0.00021917,4]
[346111249,1734708639568,-500.0,0.00021917,4]
[346111250,1734708639577,-500.0,0.00021917,4]
[346111251,1734708639587,-500.000001,0.00021917,4]
[346111252,1734708639596,-500.0,0.00021917,4]
[346111253,1734708639605,-500.0,0.00021917,4]
[346111254,1734708639615,-500.0,0.00021917,4]
[346111255,1734708639625,-500.0,0.00021917,4]
[346111256,1734708639635,-527.4,0.00021917,4]
[346111257,1734708639644,-644.44,0.00021917,4]
[346111258,1734708639654,-1110.94,0.00021917,4]
[346111259,1734708639663,-943.11,0.00021917,4]
[346111260,1734708639673,-631.39,0.00021917,4]
[346111261,1734708639684,-1228.25,0.00021917,4]
[346111262,1734708639693,-743.84,0.00021917,4]
[346111263,1734708639704,-500.0,0.00021917,4]
[346111265,1734708639717,-500.0,0.00021917,4]
[346111266,1734708639727,-500.0,0.00021917,4]
[346111267,1734708639737,-500.0,0.00021917,4]
[346111268,1734708639747,-4830.56,0.00021917,4]
[346111269,1734708639757,-672.72,0.00021917,4]
[346111270,1734708639767,-500.0,0.00021917,4]
[346111271,1734708639776,-500.0,0.00021917,4]
[346111273,1734708639786,-518.05,0.00021917,4]
[346111275,1734708639795,-500.0,0.00021917,4]
[346111277,1734708639809,-500.0,0.00021917,4]
[346111279,1734708639819,-500.0,0.00021917,4]
[346111281,1734708639829,-500.0,0.00021917,4]
[346111283,1734708639842,-330.88623151,0.00021917,4]
[346111289,1734708639902,-989.78,0.00021917,4]
[346111290,1734708639912,-500.0,0.00021917,4]
[346111291,1734708639922,-500.0,0.00021917,4]
[346111292,1734708639932,-500.0,0.00021917,4]
[346111293,1734708639942,-500.0,0.00021917,4]
[346111295,1734708639952,-502.25146455,0.00021917,4]
[346111297,1734708639961,-500.0,0.00021917,4]
[346111299,1734708639971,-500.0,0.00021917,4]
[346111301,1734708639981,-10000.0,0.00022,2]
[346111303,1734708639990,-4364.90277065,0.00022,5]
[346111305,1734708640000,-999.68,0.00022074,2]
[346111306,1734708640009,-995.88,0.00022074,2]
[346111308,1734708640018,-151.0,0.00022086,2]
[346111310,1734708640028,-5000.0,0.00022091,2]
[346111311,1734708640037,-700.0,0.0002216,2]
[346111312,1734708640047,-500.0,0.0002216,2]
[346111313,1734708640060,-500.0,0.0002219,4]
[346111314,1734708640070,-500.0,0.0002219,4]
[346111315,1734708640079,-500.0,0.0002219,4]
[346111316,1734708640089,-500.0,0.0002219,4]
[346111317,1734708640099,-500.0,0.0002219,4]
[346111318,1734708640108,-500.0,0.0002219,4]
[346111319,1734708640118,-500.0,0.0002219,4]
[346111320,1734708640128,-500.0,0.0002219,4]
[346111321,1734708640137,-500.0,0.0002219,4]
[346111322,1734708640147,-500.0,0.0002219,4]
[346111323,1734708640157,-500.0,0.0002219,4]
[346111324,1734708640167,-500.0,0.0002219,4]
[346111325,1734708640176,-500.0,0.0002219,4]
[346111326,1734708640186,-500.0,0.0002219,4]
[346111327,1734708640195,-613.58,0.0002219,4]
[346111328,1734708640204,-500.0,0.0002219,4]
[346111329,1734708640214,-500.0,0.0002219,4]
[346111330,1734708640226,-500.0,0.0002219,4]
[346111331,1734708640235,-500.0,0.0002219,4]
[346111332,1734708640245,-500.0,0.0002219,4]
[346111333,1734708640254,-500.0,0.0002219,4]
[346111334,1734708640264,-500.0,0.0002219,4]
[346111335,1734708640273,-500.0,0.0002219,4]
[346111336,1734708640283,-156.913729,0.0002219,4]
[346111337,1734708640292,-500.0,0.0002219,4]
[346111338,1734708640303,-500.0,0.0002219,4]
[346111339,1734708640313,-500.0,0.0002219,4]
[346111340,1734708640322,-500.0,0.0002219,4]
[346111341,1734708640332,-500.0,0.0002219,4]
[346111342,1734708640341,-500.0,0.0002219,4]
[346111343,1734708640351,-500.0,0.0002219,4]
[346111344,1734708640361,-500.0,0.0002219,4]
[346111345,1734708640373,-500.0,0.0002219,4]
[346111346,1734708640382,-500.0,0.0002219,4]
[346111347,1734708640391,-500.0,0.0002219,4]
[346111348,1734708640402,-500.0,0.0002219,4]
[346111349,1734708640411,-500.0,0.0002219,4]
[346111350,1734708640421,-500.0,0.0002219,4]
[346111351,1734708640431,-500.0,0.0002219,4]
[346111352,1734708640441,-500.0,0.0002219,4]
[346111353,1734708640451,-500.0,0.0002219,4]
[346111354,1734708640460,-500.0,0.0002219,4]
[346111355,1734708640470,-500.0,0.0002219,4]
[346111356,1734708640480,-500.0,0.0002219,4]
[346111357,1734708640491,-500.0,0.0002219,4]
[346111358,1734708640500,-500.0,0.0002219,4]
[346111359,1734708640509,-500.0,0.0002219,4]
[346111360,1734708640519,-500.0,0.0002219,4]
[346111361,1734708640528,-500.0,0.0002219,4]
[346111362,1734708640537,-500.0,0.0002219,4]
[346111363,1734708640547,-500.0,0.0002219,4]
[346111364,1734708640559,-500.0,0.0002219,4]
[346111365,1734708640568,-820.85,0.0002219,4]
[346111366,1734708640578,-514.24,0.0002219,4]
[346111367,1734708640587,-500.0,0.0002219,4]
[346111368,1734708640596,-500.0,0.0002219,4]
[346111369,1734708640606,-500.0,0.0002219,4]
[346111370,1734708640616,-500.0,0.0002219,4]
[346111371,1734708640625,-500.0,0.0002219,4]
[346111372,1734708640635,-500.0,0.0002219,4]
[346111373,1734708640645,-568.89,0.0002219,4]
[346111374,1734708640655,-500.0,0.0002219,4]
[346111375,1734708640664,-500.0,0.0002219,4]
[346111376,1734708640673,-685.14,0.0002219,4]
[346111377,1734708640683,-507.43,0.0002219,4]
[346111378,1734708640692,-864.14,0.0002219,4]
[346111379,1734708640702,-350.16493117,0.0002219,4]
[346111380,1734708640712,-500.0,0.0002219,4]
[346111381,1734708640721,-765.98,0.0002219,4]
[346111382,1734708640731,-500.0,0.0002219,4]
[346111383,1734708640741,-1025.07,0.0002219,4]
[346111384,1734708640750,-500.0,0.0002219,4]
[346111385,1734708640759,-500.0,0.0002219,4]
[346111386,1734708640769,-508.74,0.0002219,4]
[346111387,1734708640779,-500.0,0.0002219,4]
[346111388,1734708640788,-832.7,0.0002219,4]
[346111389,1734708640797,-500.0,0.0002219,4]
[346111390,1734708640809,-500.0,0.0002219,4]
[346111392,1734708640819,-500.0,0.0002219,4]
[346111394,1734708640828,-1222.31,0.0002219,4]
[346111396,1734708640837,-500.0,0.0002219,4]
[346111397,1734708640847,-1245.95,0.0002219,4]
[346111398,1734708640857,-500.0,0.0002219,4]
[346111399,1734708640866,-500.0,0.0002219,4]
[346111400,1734708640876,-500.0,0.0002219,4]
[346111401,1734708640885,-997.76,0.0002219,4]
[346111402,1734708640895,-368.47604038,0.0002219,4]
[346111403,1734708640904,-500.0,0.0002219,4]
[346111404,1734708640914,-4338.76,0.0002219,4]
[346111405,1734708640924,-500.0,0.0002219,4]
[346111406,1734708640933,-500.0,0.0002219,4]
[346111407,1734708640942,-500.0,0.0002219,4]
[346111408,1734708640952,-500.0,0.0002219,4]
[346111409,1734708640962,-500.0,0.0002219,4]
[346111410,1734708640971,-4322.79,0.0002219,4]
[346111411,1734708640981,-757.49,0.0002219,4]
[346111412,1734708640991,-926.41,0.0002219,4]
[346111413,1734708641000,-1635.36,0.0002219,4]
[346111414,1734708641010,-500.0,0.0002219,4]
[346111415,1734708641019,-764.22,0.0002219,4]
[346111416,1734708641029,-500.0,0.0002219,4]
[346111417,1734708641039,-500.0,0.0002219,4]
[346111418,1734708641049,-500.0,0.0002219,4]
[346111419,1734708641062,-517.74,0.0002219,4]
[346111420,1734708641072,-1796.74,0.0002219,4]
[346111421,1734708641081,-500.0,0.0002219,4]
[346111422,1734708641092,-2191.15,0.0002219,4]
[346111423,1734708641102,-500.0,0.0002219,4]
[346111424,1734708641112,-502.20261113,0.0002219,4]
[346111425,1734708641122,-1575.91,0.0002219,4]
[346111426,1734708641135,-1376.54,0.0002219,4]
[346111427,1734708641145,-500.0,0.0002219,4]
[346111428,1734708641154,-500.0,0.0002219,4]
[346111429,1734708641164,-500.0,0.0002219,4]
[346111430,1734708641174,-500.0,0.0002219,4]
[346111431,1734708641184,-523.07,0.0002219,4]
[346111432,1734708641195,-1072.88,0.0002219,4]
[346111433,1734708641204,-500.0,0.0002219,4]
[346111434,1734708641214,-500.0,0.0002219,4]
[346111435,1734708641224,-500.0,0.0002219,4]
[346111436,1734708641233,-744.56,0.0002219,4]
[346111437,1734708641243,-500.0,0.0002219,4]
[346111438,1734708641252,-519.52,0.0002219,4]
[346111439,1734708641262,-500.0,0.0002219,4]
[346111440,1734708641273,-784.97,0.0002219,4]
[346111441,1734708641284,-500.0,0.0002219,4]
[346111442,1734708641294,-610.51,0.0002219,4]
[346111443,1734708641309,-500.0,0.00022191,4]
[346111444,1734708641319,-500.0,0.00022191,4]
[346111445,1734708641329,-500.0,0.00022191,4]
[346111446,1734708641339,-500.0,0.00022191,4]
[346111447,1734708641350,-500.0,0.00022191,4]
[346111448,1734708641364,-500.0,0.00022191,4]
[346111449,1734708641374,-500.0,0.00022191,4]
[346111450,1734708641383,-500.0,0.00022191,4]
[346111451,1734708641393,-500.0,0.00022191,4]
[346111452,1734708641403,-310.56544717,0.00022191,4]
[346111453,1734708641413,-500.0,0.00022191,4]
[346111454,1734708641423,-500.0,0.00022191,4]
[346111455,1734708641433,-500.0,0.00022191,4]
[346111456,1734708641443,-500.0,0.00022191,4]
[346111457,1734708641454,-500.0,0.00022191,4]
[346111458,1734708641464,-500.0,0.00022191,4]
[346111459,1734708641474,-540.95,0.00022191,4]